[Event "4th Tata Steel India Blitz Open 2022"]
[Site "Kolkota"]
[Date "2022.12.04"]
[Round "16.2"]
[White "Abdusattorov, Nodirbek"]
[Black "So, Wesley"]
[Result "1/2-1/2"]
[ECO "D53"]
[WhiteElo "2713"]
[BlackElo "2760"]
[Annotator "TA"]
[PlyCount "96"]
[EventDate "2022.11.29"]
[EventType "tourn"]
[EventCountry "IND"]
[SourceTitle "playchess.com"]
[Source "ChessBase"]
[SourceQuality "1"]
[TimeControl "180+2"]

{[%evp 11,96,8,30,22,23,20,18,22,19,16,33,0,0,0,0,-13,-16,-14,-15,0,0,-19,-8,-12,-4,-20,-18,-33,0,-23,0,-34,-6,-54,-54,-59,-55,-53,-57,-131,-129,-132,-60,-110,-110,-145,-139,-144,-142,-294,-235,-649,-638,-575,-86,-89,-39,-33,-33,-101,-106,-99,-47,-64,-47,-56,0,0,0,0,0,-8,0,-25,0,0,0,0,0,-23,0,-15,0,0,0,0,0]} 1. d4 {[%emt 0:00:02]} Nf6 {[%emt 0:00:01]} 2. c4 {[%emt 0:00:01]} e6 {[%emt 0:00:01]} 3. Nc3 {[%emt 0:00:01]} d5 {[%emt 0:00:01]} 4. Nf3 {[%emt 0:00:05]} Be7 {[%emt 0:00:04]} 5. Bg5 {[%emt 0:00:06][%cal Bc1g5,Bg5h4,Bh4g3][%mdl 32]} h6 {[%emt 0:00:02]} 6. Bh4 {[%emt 0:00:02]} dxc4 {[%emt 0:00:01]} 7. e3 {[%emt 0:00:01] D53: Queen's Gambit Declined: 4 Bg5 Be7: Early deviations.} c5 {[%emt 0:00:01]} 8. Bxc4 {[%emt 0:00:02]} cxd4 {[%emt 0:00:01]} 9. Nxd4 {[%emt 0:00:08]} Bd7 {[%emt 0:00:01]} 10. O-O {[%emt 0:00:02]} O-O {[%emt 0:00:03]} 11. Bg3 {[%emt 0:00:27]} Nc6 {[%emt 0:00:06]} 12. Ndb5 {[%emt 0:00:07] [#]} Ne8 $146 {[%emt 0:00:18]} ({Predecessor:} 12... a6 13. Nd6 b5 14. Be2 Qb6 15. a4 b4 16. Nb1 Rfd8 17. Nd2 Na5 18. N2c4 Nxc4 19. Nxc4 {0-1 (58) Seo,J (2479)-Plazuelo Pascual,J (2458) Chess.com INT 2022}) 13. Qe2 {[%emt 0:00:24]} a6 {[%emt 0:00:08]} 14. Nd4 {[%emt 0:00:02]} Nxd4 {[%emt 0:00:04]} 15. exd4 {[%emt 0:00:01]} Nf6 {[%emt 0:00:02]} 16. Rfd1 {[%emt 0:00:32]} Bc6 {[%emt 0:00:25] Inhibits d5.} 17. Be5 {[%emt 0:00:01]} Re8 {[%emt 0:00:27]} 18. Rac1 {[%emt 0:00:09]} Rc8 {[%emt 0:00:02]} 19. Bd3 {[%emt 0:00:05]} b5 {[%emt 0:00:15]} 20. a3 {[%emt 0:00:06]} Qd7 {[%emt 0:00:06]} 21. Bb1 {[%emt 0:00:03]} Qb7 {[%emt 0:00:23]} 22. Qd3 {[%emt 0:00:20]} (22. f3 $11) 22... Bxg2 $15 {[%emt 0:00:12]} 23. Bxf6 {[%emt 0:00:07]} Bxf6 {[%emt 0:00:01]} 24. d5 {[%emt 0:00:08] Prevents g6.} Bxd5 $40 {[%emt 0:00:17][%mdl 128] Black has some attack. This pair of bishops is nice.} 25. Qh7+ {[%emt 0:00:15]} (25. Nxd5 $15 exd5 26. Rxc8 Rxc8 27. Qh7+ Kf8 28. Re1) 25... Kf8 $17 {[%emt 0:00:01] White must now prevent ...Bg2.} 26. Nxd5 {[%emt 0:00:09]} exd5 {[%emt 0:00:00]} ({Better is} 26... Qxd5 $17 27. Qh8+ Ke7 28. Qxe8+ Rxe8 29. Rxd5 exd5 30. Re1+ Kf8 31. Rxe8+ Kxe8) 27. Re1 {[%emt 0:00:07]} (27. Rxc8 $15 Rxc8 28. Re1) 27... g6 {[%emt 0:00:09]} (27... Bxb2 $2 28. Qh8#) 28. Bxg6 {[%emt 0:00:10]} Rxc1 {[%emt 0:00:21]} (28... Bxb2 29. Rxc8 (29. Qxh6+ Bg7 $15) 29... Rxc8 30. Qxh6+ Bg7 31. Qf4 $15) 29. Rxc1 {[%emt 0:00:01]} Bg7 {[%emt 0:00:06]} (29... Bxb2 30. Qxh6+ Bg7 31. Qf4 $15) 30. Bh5 $2 {[%emt 0:00:03] [#]} (30. Bd3 $17 {might work better.}) 30... Re5 $1 $19 {[%emt 0:00:03]} (30... Bxb2 31. Qxh6+ Kg8 32. Qg5+ Bg7 33. Qf5 $11) 31. Bg4 {[%emt 0:00:04]} (31. Bf3) 31... Rg5 $1 {[%emt 0:00:05][%csl LRb2,LRg4]} 32. h3 {[%emt 0:00:08]} h5 $2 {[%emt 0:00:09]} (32... Bxb2 33. Qxh6+ Ke8 34. Re1+ Re5 35. Qh8+ Ke7 36. Rxe5+ $18) (32... f5 $19 33. b3 Qd7) 33. f4 $17 {[%emt 0:00:01] [#]} Rg6 {[%emt 0:00:06]} ({Of course not} 33... Bxb2 $6 34. fxg5 Qb6+ 35. Kf1 Bxc1 36. Qh8+ (36. Bxh5 Qe6 $17) 36... Ke7 37. Qe5+ (37. Bxh5 Qe6 $17) 37... Kf8 38. Qh8+ Ke7 39. Qe5+ (39. Bxh5 Qe6 $17) 39... Kf8 40. Qh8+ $11) (33... Qb6+ $1 $17 34. Kf1 Qg6 35. Qxg6 (35. Rc8+ Ke7 $17) 35... Rxg6 36. Bxh5 Rh6 37. Rc8+ Ke7) 34. Qxh5 $15 {[%emt 0:00:01]} Rc6 {[%emt 0:00:00]} 35. Re1 {[%emt 0:00:07]} (35. Rxc6 $15 Qxc6 36. Kg2) 35... Qb6+ $17 {[%emt 0:00:01]} 36. Kg2 {[%emt 0:00:02]} Rc2+ {[%emt 0:00:03]} ({Black should try} 36... Bxb2 $17 37. Qxd5 Bxa3) 37. Re2 $15 Rxe2+ {[%emt 0:00:01]} (37... Qc6 $5 {[%cal Rd5d4]} 38. Kg3 Rxe2 39. Bxe2 Bxb2 $17) 38. Bxe2 {[%emt 0:00:01][%mdl 4096] Endgame KQB-KQB} Qd4 {[%emt 0:00:02]} (38... Bxb2 $15 39. Qxd5 Bxa3) 39. Qf5 $11 {[%emt 0:00:02]} Qxb2 {[%emt 0:00:07]} 40. Qc8+ {[%emt 0:00:01]} Ke7 {[%emt 0:00:01]} 41. Qc7+ {[%emt 0:00:02]} Ke6 {[%emt 0:00:01]} 42. Qc6+ {[%emt 0:00:03]} Ke7 {[%emt 0:00:01]} (42... Kf5 $5 {[%cal Rb2e2]} 43. Qxd5+ Kxf4 44. Qxf7+ (44. Qf3+ Ke5 $15) 44... Qf6 $15) 43. Qb7+ {[%emt 0:00:02]} Ke8 {[%emt 0:00:02]} 44. Qc8+ {[%emt 0:00:04]} Ke7 {[%emt 0:00:01]} 45. Qc7+ {[%emt 0:00:01]} Ke6 {[%emt 0:00:01]} (45... Kf6 $5 {[%cal Rb2e2]} 46. Qd6+ Kf5 47. Qxd5+ Kxf4 48. Qxf7+ (48. Qf3+ Ke5 $15) 48... Bf6 $15) 46. Qc6+ {[%emt 0:00:02] The position is equal.} Ke7 {[%emt 0:00:03]} 47. Qb7+ {[%emt 0:00:02]} Ke8 {[%emt 0:00:03]} 48. Qc8+ {[%emt 0:00:04]} Ke7 {[%emt 0:00:02] Black had all chances to win.   Weighted Error Value: White=0.30/Black=0.23 (precise)} 1/2-1/2

[Event "4th Tata Steel India Blitz Open 2022"]
[Site "Kolkota"]
[Date "2022.12.04"]
[Round "16.3"]
[White "Nihal Sarin"]
[Black "Mamedyarov, Shakhriyar"]
[Result "1/2-1/2"]
[ECO "D02"]
[WhiteElo "2670"]
[BlackElo "2741"]
[Annotator "TA"]
[PlyCount "99"]
[EventDate "2022.11.29"]
[EventType "tourn"]
[EventCountry "IND"]
[SourceTitle "playchess.com"]
[Source "ChessBase"]
[SourceQuality "1"]
[TimeControl "180+2"]

{[%evp 9,99,10,8,0,13,0,0,-2,15,16,18,10,20,21,35,31,27,38,42,28,30,17,61,0,0,0,0,0,0,0,0,0,0,-82,-87,-150,-152,-180,-68,-156,-74,-147,-100,-143,-31,-28,0,-156,-161,-383,-227,-582,-488,-740,-716,-889,-832,-1570,-1597,-1302,-716,-5405,-5302,-3300,-517,-521,-514,-514,-481,-493,-487,-491,-463,-29996,-366,-360,-326,-1710,0,0,0,0,0,0,0,0,0,0,0,0,0,0]} 1. d4 {[%emt 0:00:02]} d5 {[%emt 0:00:00]} 2. Nf3 {[%emt 0:00:02]} Nf6 {[%emt 0:00:02]} 3. c3 {[%emt 0:00:01]} e6 {[%emt 0:00:07]} 4. Bf4 {[%emt 0:00:01]} Bd6 {[%emt 0:00:00]} 5. e3 {[%emt 0:00:01]} O-O {[%emt 0:00:05]} 6. Nbd2 {[%emt 0:00:02] D02: 1 d4 d5 2 Nf3 sidelines, including 2...Nf6 3 g3 and 2...Nf6 3 Bf4.} b6 {[%emt 0:00:01]} 7. h4 {[%emt 0:00:18]} c5 {[%emt 0:00:02]} 8. h5 {[%emt 0:00:26]} h6 {[%emt 0:00:15] [#]} 9. Bxd6 $146 {[%emt 0:00:03]} ({Predecessor:} 9. Ne5 Qc7 10. Qf3 Nh7 11. Bd3 f6 12. Qg3 cxd4 13. Qg6 f5 14. cxd4 Nc6 15. Nxc6 Bxf4 16. exf4 Qxc6 {½-½ (101) Tabatabaei,M (2664)-Sarana,A (2668) Chess.com INT 2022}) 9... Qxd6 {[%emt 0:00:01]} 10. Ne5 $1 {[%emt 0:00:01]} Nc6 {[%emt 0:00:09]} 11. f4 {[%emt 0:00:03]} cxd4 {[%emt 0:00:19]} 12. exd4 {[%emt 0:00:02]} Ne4 {[%emt 0:00:02]} 13. Bd3 {[%emt 0:00:02]} f5 {[%emt 0:00:17]} 14. Ndf3 {[%emt 0:00:20]} Bd7 {[%emt 0:00:08]} 15. Rg1 {[%emt 0:00:28]} (15. a3 {seems wilder.} a5 16. Ng6 Rfb8 17. Nfe5) 15... Ng3 {[%emt 0:01:09]} (15... b5 {with more complications.} 16. Nxd7 Qxd7 17. Bxb5 Rab8) 16. Nxc6 {[%emt 0:00:11]} (16. Ng6 $1 $14) 16... Bxc6 $11 {[%emt 0:00:03]} 17. Ne5 {[%emt 0:00:03] aiming for Qf3.} Be8 {[%emt 0:00:02]} 18. Qf3 {[%emt 0:00:06]} Nxh5 {[%emt 0:00:16]} 19. g4 {[%emt 0:00:03]} fxg4 {[%emt 0:00:07]} 20. Rxg4 {[%emt 0:00:03] Hoping for Rh4.} g5 {[%emt 0:00:05][%cal Rf8f4]} 21. Qg2 {[%emt 0:00:55]} (21. Qh1 $11 {keeps the balance.} Rxf4 22. Rxf4 Nxf4 23. Qxh6 Nxd3+ 24. Nxd3 Qg3+ 25. Kd2 Qg2+ 26. Ke3 Qg3+ 27. Kd2 Qg2+ 28. Ke3 Qg3+ 29. Kd2) 21... Rxf4 $17 {[%emt 0:00:06]} (21... Nxf4 $2 22. Rxg5+ $1 Kh8 23. Qh1 Nxd3+ 24. Kd2 $18) 22. O-O-O {[%emt 0:00:11]} (22. Rxg5+ $142 hxg5 23. Qxg5+ Kf8 24. Bg6) 22... Qf8 {[%emt 0:00:03]} 23. Kb1 {[%emt 0:00:07]} a5 {[%emt 0:00:06]} (23... Rxg4 $1 $19 24. Qxg4 Nf4) 24. Rg1 {[%emt 0:00:09]} (24. Qh1 $15) 24... Ra7 {[%emt 0:00:01]} (24... Rxg4 $142 $1 25. Qxg4 Nf4) 25. a3 {[%emt 0:00:03]} (25. Qh3 $142 Qg7 26. R4g2) 25... Rg7 {[%emt 0:00:01]} ({Better is} 25... Rxg4 $1 26. Qxg4 Nf4) 26. Qh2 {[%emt 0:00:02]} Qf6 {[%emt 0:00:03]} (26... Rf2 $17 27. Qh3 b5) 27. Rxf4 $15 {[%emt 0:00:03]} Qxf4 {[%emt 0:00:02]} 28. Qc2 {[%emt 0:00:03]} (28. Qh3 $11 Re7 29. Ng4) 28... Qe3 $17 {[%emt 0:00:03]} 29. Rh1 {[%emt 0:00:03]} (29. Rf1 {was called for.} Nf4 30. Rf3 Qe1+ 31. Ka2) 29... Nf4 {[%emt 0:00:02]} (29... g4 $142 {...g3 is the strong threat.} 30. Qh2 g3) 30. Ka1 $2 {[%emt 0:00:04]} (30. Rxh6 Nxd3 31. Qxd3 Qxd3+ 32. Nxd3) 30... h5 {[%emt 0:00:01]} 31. Ba6 {[%emt 0:00:03]} (31. Qd1 $142 Nxd3 32. Nxd3) 31... g4 $19 {[%emt 0:00:03]} 32. Qb3 {[%emt 0:00:02]} g3 {[%emt 0:00:02] Threatens to win with ...g2.} 33. Qxb6 {[%emt 0:00:02]} g2 {[%emt 0:00:01]} 34. Rb1 {[%emt 0:00:01]} g1=Q {[%emt 0:00:05][%cal Oe3e4]} (34... g1=R $2 {too greedy.} 35. Qd8 $19) 35. Rxg1 {[%emt 0:00:01]} Rxg1+ {[%emt 0:00:02]} 36. Ka2 {[%emt 0:00:00]} Bg6 {[%emt 0:00:13]} (36... Qc1 $142 {( -> ...a4)} 37. Qd8 Qb1+ 38. Kb3 a4+ 39. Kb4 Qxb2+ 40. Kc5 Qxa3+ 41. Kb6 Rb1+ 42. Kc7 Qxc3+ 43. Nc4 dxc4 44. Qxe8+ Kg7 45. Qe7+ Kg6 46. Qe8+ Kf5) 37. Qd8+ {[%emt 0:00:03]} Kg7 {[%emt 0:00:04]} 38. Qe7+ {[%emt 0:00:01]} Kh6 {[%emt 0:00:04]} 39. Qf6 {[%emt 0:00:01] White threatens Nf7+ and mate.} h4 $1 {[%emt 0:00:04]} ({Avoid the trap} 39... Kh7 $2 40. Qe7+ Kh6 41. Qf6 $19) 40. Qxh4+ {[%emt 0:00:04]} Nh5 {[%emt 0:00:01]} 41. Qe7 {[%emt 0:00:03] [#]} (41. Ng4+ $19 Rxg4 42. Qxg4) 41... Qf4 $2 {[%emt 0:00:02]} (41... Ra1+ $3 {[%mdl 512] mates} 42. Kb3 (42. Kxa1 Qe1+) 42... Bc2+ $1 {[%mdl 512]} 43. Kxc2 Qc1+ 44. Kd3 Nf4#) 42. Qxe6 {[%emt 0:00:02]} a4 {[%emt 0:00:01]} 43. Bd3 $2 {[%emt 0:00:02] [#]} (43. Nxg6 Rxg6 44. Qc8) 43... Qf6 $2 {[%emt 0:00:02]} ({Black should play} 43... Qc1 $1 $19 {[%csl Gg1][%cal Rc1a1]} 44. Qxg6+ Rxg6 45. Bxg6 Ng3) 44. Qxf6 $11 {[%emt 0:00:03] Dancing on a razor blade. The position is equal.} Nxf6 {[%emt 0:00:01]} 45. Bxg6 {[%emt 0:00:01] Black must now prevent Bc2. KRN-KBN} Ne4 {[%emt 0:00:04] And now ...Rg2 would win.} 46. Bf7 {[%emt 0:00:02]} Rg2 {[%emt 0:00:01]} 47. Ka1 {[%emt 0:00:03]} Rg1+ {[%emt 0:00:02]} 48. Ka2 {[%emt 0:00:00]} Rg2 {[%emt 0:00:02]} 49. Ka1 {[%emt 0:00:02]} Rg1+ {[%emt 0:00:04]} 50. Ka2 {Black had all chances to win.   Weighted Error Value: White=0.92/Black=0.58} 1/2-1/2

[Event "4th Tata Steel India Blitz Open 2022"]
[Site "Kolkota"]
[Date "2022.12.04"]
[Round "16.4"]
[White "Vidit, Santosh Gujrathi"]
[Black "Rameshbabu, Praggnanandhaa"]
[Result "1-0"]
[ECO "C78"]
[WhiteElo "2724"]
[BlackElo "2678"]
[Annotator "TA"]
[PlyCount "95"]
[EventDate "2022.11.29"]
[EventType "tourn"]
[EventCountry "IND"]
[SourceTitle "playchess.com"]
[Source "ChessBase"]
[SourceQuality "1"]
[TimeControl "180+2"]

{[%evp 19,95,22,27,29,31,30,34,34,55,58,41,54,109,105,106,114,147,101,139,77,106,98,103,110,116,121,259,241,298,102,97,45,59,64,187,68,149,152,235,243,244,248,249,233,240,159,220,219,206,173,235,235,297,225,225,225,229,225,225,225,231,225,322,314,376,368,363,348,348,345,420,420,702,420,418,370,29970,29971]} 1. e4 {[%emt 0:00:01]} e5 {[%emt 0:00:03]} 2. Nf3 {[%emt 0:00:01]} Nc6 {[%emt 0:00:01]} 3. Bb5 {[%emt 0:00:04][%cal Bf1b5,Bb5a4,Ba4b3][%mdl 32]} a6 {[%emt 0:00:01]} 4. Ba4 {[%emt 0:00:01]} Nf6 {[%emt 0:00:01]} 5. O-O {[%emt 0:00:03]} b5 {[%emt 0:00:01]} 6. Bb3 {[%emt 0:00:01]} Bb7 {[%emt 0:00:01]} 7. d3 {[%emt 0:00:05]} Bc5 {[%emt 0:00:02]} 8. a4 {[%emt 0:00:10]} O-O {[%emt 0:00:03]} 9. Nc3 {[%emt 0:00:15]} Na5 {[%emt 0:00:04] The main line 9...Na5 scores better than 9...b4.} 10. axb5 {[%emt 0:00:05]} Nxb3 {[%emt 0:00:02]} (10... axb5 {is interesting.} 11. Nxe5 Nxb3 12. Rxa8 Bxa8 13. cxb3 Re8) 11. cxb3 {[%emt 0:00:01] C78: Ruy Lopez: Archangelsk and Möller Defences.} axb5 {[%emt 0:00:01]} 12. Rxa8 {[%emt 0:00:02]} Qxa8 {[%emt 0:00:02]} 13. Nxe5 {[%emt 0:00:13] [#] White is slightly better.} b4 $146 {[%emt 0:00:15]} ({Predecessor:} 13... Re8 14. Ng4 Nxg4 15. Qxg4 b4 16. Nb5 Qd8 17. Qf4 d6 18. Be3 Bxe3 19. fxe3 Qd7 {½-½ (28) Yloenen,O (2423)-Ghyssens,D (2418) ICCF email 2012}) 14. Na4 {[%emt 0:00:03] Pair of Knights!} Be7 {[%emt 0:00:01]} 15. Bg5 {[%emt 0:00:09]} Rd8 {[%emt 0:00:13]} (15... Qd8 $14) 16. Ng4 $1 $16 {[%emt 0:00:15] White is more active.} Nd5 {[%emt 0:00:54][%mdl 64]} 17. Qc1 {[%emt 0:00:27]} f6 {[%emt 0:00:21]} 18. Bd2 {[%emt 0:00:28]} (18. Bh4 $142 $1) 18... f5 {[%emt 0:00:40]} 19. Ne5 {[%emt 0:00:32]} (19. exf5 Rf8 $16) (19. exd5 $142 fxg4 20. Qxc7) 19... fxe4 {[%emt 0:00:02]} 20. dxe4 {[%emt 0:00:00]} d6 {[%emt 0:00:21]} 21. Ng4 {[%emt 0:00:13]} Nf6 {[%emt 0:00:05]} 22. Qxc7 {[%emt 0:00:05]} Nxg4 {[%emt 0:00:16]} (22... Nxe4 $16 23. Bxb4 Bg5) 23. Qxe7 $18 {[%emt 0:00:01] Strongly threatening Qe6+.} Re8 {[%emt 0:00:03]} 24. Qg5 {[%emt 0:00:05]} (24. Qxd6 $18 {Hoping for f3.} Rxe4 25. Nc5) 24... Rxe4 $16 {[%emt 0:00:07] [#]} 25. Nb6 {[%emt 0:00:12] Inhibits h6.} (25. h3 $1 $16 {[%cal Rh3g4]} Ne5 26. Nb6) 25... Qe8 $14 {[%emt 0:00:08]} 26. Nc4 {[%emt 0:00:02]} Rd4 {[%emt 0:00:02] [#]} ({Black should try} 26... h6 $14 27. Qf5 Qe6 28. Qxe6+ Rxe6 29. Bxb4 Rg6) 27. Bxb4 {[%emt 0:00:06]} ({White should play} 27. Re1 $1 $18 {[%cal Re1e8]} Qf8 28. f3 (28. Bxb4 $2 Qxf2+ 29. Kh1 Bxg2#)) 27... h6 {[%emt 0:00:01]} (27... Rxc4 $1 $14 28. Bc3 (28. bxc4 Qe4 $11) 28... Rxc3 29. bxc3 Ne5) 28. Qf5 $16 {[%emt 0:00:05]} Qc6 {[%emt 0:00:02]} (28... Qe2 $16 {is a better defense.} 29. h3 (29. Bxd6 Rd1 $11) 29... Rd1) 29. f3 $18 {[%emt 0:00:04]} Ne5 {[%emt 0:00:02]} 30. Bc3 {[%emt 0:00:04]} (30. Nxe5 dxe5 31. Bc3 Rd5) 30... Rd5 {[%emt 0:00:02]} 31. Qe6+ {[%emt 0:00:02]} ({Much less strong is} 31. Nxe5 dxe5 32. h3 (32. Bxe5 $2 {perishes.} Qc5+ 33. Kh1 Rxe5 $19) 32... Qb6+ 33. Kh1 Qxb3) 31... Kh7 {[%emt 0:00:02]} 32. Nxe5 {[%emt 0:00:04]} Qc5+ {[%emt 0:00:02]} (32... dxe5 $16 33. Qxc6 Bxc6) 33. Kh1 {[%emt 0:00:01] Intending Qg6+ and mate.} dxe5 {[%emt 0:00:02]} 34. h3 {[%emt 0:00:03]} Qe3 {[%emt 0:00:03]} (34... Bc8 $142 35. Qe8 Bd7) 35. Qf5+ {[%emt 0:00:04]} Kh8 {[%emt 0:00:01]} 36. b4 {[%emt 0:00:02]} Qf4 {[%emt 0:00:04]} 37. Qxf4 {[%emt 0:00:04]} exf4 {[%emt 0:00:01][%mdl 4096] Endgame KRB-KRB} 38. Re1 {[%emt 0:00:00]} Rd7 {[%emt 0:00:01]} 39. Re5 {[%emt 0:00:03]} Kg8 {[%emt 0:00:03]} 40. h4 {[%emt 0:00:01] Prevents g5.} g6 {[%emt 0:00:03]} (40... Bd5 $142 41. Rf5 Bc4 42. Rxf4 Bd3) 41. Re6 {[%emt 0:00:01]} g5 {[%emt 0:00:02]} 42. Rxh6 {[%emt 0:00:02]} gxh4 {[%emt 0:00:01]} 43. Rh8+ {[%emt 0:00:02]} Kf7 {[%emt 0:00:01]} 44. Rxh4 {[%emt 0:00:01]} Kg6 {[%emt 0:00:03]} 45. Rxf4 {[%emt 0:00:02]} Rd5 {[%emt 0:00:02]} (45... Rf7 $142) 46. Kh2 {[%emt 0:00:01]} Rh5+ {[%emt 0:00:02]} 47. Kg3 {[%emt 0:00:01] Threatens to win with Rf6+.} Rh1 $2 {[%emt 0:00:01]} (47... Rf5 $18 48. Rd4 Rd5) 48. Rf6+ {[%emt 0:00:02] Weighted Error Value: White=0.33/Black=0.49} 1-0

[Event "4th Tata Steel India Blitz Open 2022"]
[Site "Kolkota"]
[Date "2022.12.04"]
[Round "16.5"]
[White "Nakamura, Hikaru"]
[Black "Gukesh D"]
[Result "1-0"]
[ECO "D35"]
[WhiteElo "2768"]
[BlackElo "2725"]
[Annotator "TA"]
[PlyCount "75"]
[EventDate "2022.11.29"]
[EventType "tourn"]
[EventCountry "IND"]
[SourceTitle "playchess.com"]
[Source "ChessBase"]
[SourceQuality "1"]
[TimeControl "180+2"]

{[%evp 12,74,25,29,42,39,38,14,66,71,168,0,0,0,0,0,0,0,31,0,-27,-25,14,-14,-22,-17,-25,-55,-44,-109,-95,-100,-66,-76,-51,-52,-42,-45,-56,-70,-70,-66,-65,-62,10,12,30,0,8,10,11,10,13,0,0,-219,68,90,79,21,135,0,0,0,29999]} 1. c4 {[%emt 0:00:00]} e6 {[%emt 0:00:01]} 2. Nc3 {[%emt 0:00:04]} d5 {[%emt 0:00:01]} 3. d4 {[%emt 0:00:01]} Nf6 {[%emt 0:00:06]} 4. cxd5 {[%emt 0:00:04]} exd5 {[%emt 0:00:02]} 5. Bg5 {[%emt 0:00:02][%cal Bc1g5,Bg5h4,Bh4g3][%mdl 32]} Bb4 {[%emt 0:00:02]} 6. e3 {[%emt 0:00:02]} h6 {[%emt 0:00:01]} 7. Bh4 {[%emt 0:00:01]} g5 {[%emt 0:00:02] D35: Queen's Gambit Declined: Exchange Variation.} 8. Bg3 {[%emt 0:00:01]} Ne4 {[%emt 0:00:01]} 9. Rc1 {[%emt 0:00:02]} (9. Nge2 {simplifies} c6 10. a3 Bxc3+ 11. Nxc3 Nxg3 12. hxg3 Nd7 13. Qd2) 9... Nc6 {[%emt 0:00:11]} (9... h5 $11) 10. Bd3 $14 {[%emt 0:00:13] [#]} h5 $146 {[%emt 0:00:08] [#]} (10... Nxg3 $16 {was worth a try.} 11. hxg3 Be6) ({Predecessor:} 10... Qe7 11. Nge2 h5 12. h4 Bg4 13. Bxe4 dxe4 14. d5 O-O-O 15. a3 Bxc3+ 16. Rxc3 Ne5 {0-1 (41) Wagner,D (2581)-Matlakov,M (2685) Chess.com INT 2020}) 11. f3 $2 {[%emt 0:00:24]} (11. Bxe4 $1 $18 {[%cal Og3c7] aiming for Bxc7!} dxe4 12. h4) 11... Nxg3 $11 {[%emt 0:00:03]} 12. hxg3 {[%emt 0:00:01]} Qe7 $36 {[%emt 0:00:23][%mdl 2048] Black has the initiative.} 13. Kf2 {[%emt 0:00:01]} Be6 {[%emt 0:00:03]} 14. Nge2 {[%emt 0:00:03]} h4 {[%emt 0:00:09]} 15. g4 {[%emt 0:00:05]} (15. gxh4 $14 gxh4 16. Bb5) 15... O-O-O {[%emt 0:00:16]} 16. a3 {[%emt 0:00:01] Against a6} Bd6 {[%emt 0:00:09]} (16... Bxc3 {is more complex.} 17. Nxc3 Qf6 18. Qb3 Kb8) 17. Nb5 {[%emt 0:00:05][%cal Oc1c6] Black must now prevent Rxc6!} a6 {[%emt 0:00:18]} 18. Nxd6+ {[%emt 0:00:05]} Rxd6 {[%emt 0:00:04]} 19. Qd2 {[%emt 0:00:01]} Rf8 {[%emt 0:00:08]} 20. Bf5 {[%emt 0:00:21]} (20. b4 $15) 20... Bxf5 $17 {[%emt 0:00:07]} 21. gxf5 {[%emt 0:00:01]} Qd7 {[%emt 0:00:01]} (21... g4 {feels hotter.} 22. Nf4 g3+ 23. Ke1 Re8) 22. Qd3 {[%emt 0:00:12]} Ne7 {[%emt 0:00:09]} 23. g4 {[%emt 0:00:01]} hxg3+ {[%emt 0:00:17]} 24. Nxg3 {[%emt 0:00:01]} Rf6 {[%emt 0:00:01]} 25. e4 {[%emt 0:00:08]} dxe4 {[%emt 0:00:03]} 26. fxe4 {[%emt 0:00:01]} Rd6 {[%emt 0:00:17]} 27. d5 {[%emt 0:00:06]} Nxd5 {[%emt 0:00:10]} 28. exd5 $11 {[%emt 0:00:41]} Rxd5 {[%emt 0:00:01]} 29. Qc4 {[%emt 0:00:13]} Rd2+ {[%emt 0:00:04]} 30. Kg1 {[%emt 0:00:02]} Re8 {[%emt 0:00:15] Hoping for ...Rd4.} 31. Rh2 {[%emt 0:00:10] And now Rxd2 would win.} Rd4 {[%emt 0:00:02]} 32. Qc2 {[%emt 0:00:02]} Rg4 {[%emt 0:00:04]} 33. Rg2 {[%emt 0:00:01]} (33. Rd1 $11 Qb5 34. Rh3) 33... Re3 $2 {[%emt 0:00:12]} (33... Qd4+ $19 34. Qf2 Re3) 34. Nf1 $1 $14 {[%emt 0:00:13][%csl LRe3,LRg4]} Ree4 {[%emt 0:00:10]} 35. Qc5 {[%emt 0:00:17]} (35. Qc3 $16) 35... b5 {[%emt 0:00:07]} (35... Rxg2+ $11 {remains equal.} 36. Kxg2 Rg4+ 37. Kh3 Re4) 36. Qa7 {[%emt 0:00:06]} (36. Ne3 $16 Rxg2+ 37. Nxg2 (37. Kxg2 Qd2+ 38. Kh1 Rh4+ 39. Kg1 Qh2+ 40. Kf1 Kb8 $16)) 36... Rxg2+ $11 {[%emt 0:00:02]} 37. Kxg2 {[%emt 0:00:01][%cal Ra7a8] The board is on fire.} Rc4 $2 {[%emt 0:00:03][%mdl 8192] [#]} (37... Rg4+ $11 38. Kh3 Rh4+ 39. Kg3 Qd6+ 40. Kg2 Rg4+ 41. Kh3 Rh4+ 42. Kg2 Rg4+ 43. Kh3 Rh4+ 44. Kg2) 38. Qa8# {[%emt 0:00:02] Weighted Error Value: White=0.39/Black=0.45} 1-0

[Event "4th Tata Steel India Blitz Open 2022"]
[Site "Kolkota"]
[Date "2022.12.04"]
[Round "17.1"]
[White "Mamedyarov, Shakhriyar"]
[Black "Abdusattorov, Nodirbek"]
[Result "1/2-1/2"]
[ECO "E11"]
[WhiteElo "2741"]
[BlackElo "2713"]
[Annotator "TA"]
[PlyCount "31"]
[EventDate "2022.11.29"]
[EventType "tourn"]
[EventCountry "IND"]
[SourceTitle "playchess.com"]
[Source "ChessBase"]
[SourceQuality "1"]
[TimeControl "180+2"]

{[%evp 19,31,9,18,8,8,4,10,10,8,0,0,0,0,0]} 1. d4 {[%emt 0:00:00]} Nf6 {[%emt 0:00:01]} 2. c4 {[%emt 0:00:01]} e6 {[%emt 0:00:01]} 3. Nf3 {[%emt 0:00:02]} Bb4+ {[%emt 0:00:04]} 4. Bd2 {[%emt 0:00:01]} Bxd2+ {[%emt 0:00:04]} 5. Qxd2 {[%emt 0:00:02]} O-O {[%emt 0:00:03]} 6. Nc3 d5 7. e3 {[%emt 0:00:02]} Qe7 8. Rc1 {[%emt 0:00:05]} Rd8 {[%emt 0:00:07]} 9. Qc2 {[%emt 0:00:12]} dxc4 {[%emt 0:00:02]} 10. Bxc4 {[%emt 0:00:01]} c5 {[%emt 0:00:01] The position is equal.} 11. O-O {[%emt 0:00:14] E11: Bogo-Indian.} cxd4 {[%emt 0:00:16]} 12. Nxd4 {[%emt 0:00:02]} Bd7 {[%emt 0:00:00][%cal Bc8d7,Bd7e8,Be8c6][%mdl 32]} 13. Qb3 {[%emt 0:00:11]} Be8 {[%emt 0:00:37] [#]} 14. Rfd1 $146 {[%emt 0:00:23]} ({Predecessor:} 14. Bb5 Nbd7 15. Rfd1 Kf8 16. Be2 Ne5 17. Ncb5 Nc6 18. Bf3 Rab8 19. Qc2 Nxd4 20. Nxd4 {½-½ (31) Parligras,M (2616)-Meier,G (2655) Germany 2018}) 14... Nc6 {[%emt 0:00:03] [#] And now ...Na5 would win.} 15. Nxc6 {[%emt 0:00:02]} Bxc6 {[%emt 0:00:01]} 16. Bb5 {[%emt 0:00:01] An uneventful encounter.   Weighted Error Value: White=0.04 (flawless) /Black=0.01 (flawless)} 1/2-1/2